Cogmind - Beta 17 @@@ ROGUE MODE // 2026.07.13 @ 09:13:53 Player: Hadza Result: Self-destructed Performance ------------- Evolutions (1) 500 Regions Visited (5) 1000 Robots Destroyed (28) 140 Value Destroyed (694) 694 Prototype IDs (23) 460 Alien Tech Used (0) 0 Bonus (195) 195 TOTAL SCORE: 2989 Bonus ------- Aligned with FarCom 300 Friendly Fire -105 Cogmind --------- Core Integrity 104/400 Matter 174/300 Energy 100/100 System Corruption 2% Temperature Cool (0) Movement Walking (45) Location -8/Mines Parts ------- > --- POWER (1) -------- (None) > --- PROPULSION (2) --- Potential Leg > --- UTILITY (4) ------ Large Storage Unit Targeting Computer > --- WEAPON (2) ------- Guided Plasma Cannon > --- INVENTORY (15) --- Nuclear Core Nuclear Core Improved Heat Sink Large Battery (200) Large Battery (200) Large Battery (200) Improved Targeting Computer Improved Propulsion Shielding Improved Propulsion Shielding Weapon Shielding Light Armor Plating Light Assault Rifle Shotgun Peak State ------------ > --- POWER ------------ Nuclear Core > --- PROPULSION ------- Potential Leg Potential Leg > --- UTILITY ---------- Large Storage Unit Targeting Computer Targeting Computer Hardened Light Armor Plating > --- WEAPON ----------- Beam Rifle Guided Plasma Cannon > --- INVENTORY -------- Nuclear Core Nuclear Core Improved Heat Sink Large Battery Large Battery Large Battery Improved Targeting Computer Improved Propulsion Shielding Improved Propulsion Shielding Weapon Shielding Light Armor Plating Light Assault Rifle Shotgun [Rating: 40] Favorites ----------- Power Nuclear Core Engine Light Ion Engine Power Core Nuclear Core Propulsion Light Treads Treads Light Treads Leg Potential Leg Utility Targeting Computer Storage Large Storage Unit Processor Targeting Computer Protection Improved Propulsion Shielding Weapon Light Assault Rifle Energy Gun Beam Rifle Energy Cannon Guided Plasma Cannon Ballistic Gun Light Assault Rifle Build | -11 -10 -9 -9 -9 -8 ------- Run | Yrd Mat Mat Min Exi Min Slots Evolved 2 | . . 2 . . . Power . | . . . . . . Propulsion . | . . . . . . Utility 2 | . . 2 . . . Weapon . | . . . . . . Parts Attached 24 | 5 2 5 8 4 . Power 3 | 1 . . 2 . . Engine 1 | 1 . . . . . Core 2 | . . . 2 . . Reactor . | . . . . . . Propulsion 7 | 2 . . 2 3 . Treads 5 | 2 . . 2 1 . Leg 2 | . . . . 2 . Wheel . | . . . . . . Hover . | . . . . . . Flight . | . . . . . . Utility 7 | 1 1 3 2 . . Device . | . . . . . . Storage 2 | 1 . 1 . . . Processor 2 | . 1 1 . . . Hackware . | . . . . . . Protection 3 | . . 1 2 . . Artifact . | . . . . . . Weapon 7 | 1 1 2 2 1 . Energy Gun 3 | . . 2 1 . . Energy Cannon 1 | . . . . 1 . Ballistic Gun 3 | 1 1 . 1 . . Ballistic Cannon . | . . . . . . Launcher . | . . . . . . Special Weapon . | . . . . . . Impact Weapon . | . . . . . . Slashing Weapon . | . . . . . . Piercing Weapon . | . . . . . . Special Melee Weapon . | . . . . . . Unidentified Prototypes . | . . . . . . Parts Lost 9 | . . 1 4 4 . Power 3 | . . 1 1 1 . Propulsion . | . . . . . . Utility 4 | . . . 2 2 . Weapon 2 | . . . 1 1 . Highest Loss Streak 4 | . . 1 1 4 . To Critical Strikes . | . . . . . . Average Backups 10 | . 4 9 11 13 . Power 2 | . 1 2 2 2 . Propulsion . | . . . . . . Utility 6 | . 3 5 7 9 . Weapon 1 | . . 1 1 2 . Tool/Special . | . . . . . . Unused Backups 16 | . . 3 . 1 12 Power 5 | . . 3 . . 2 Propulsion . | . . . . . . Utility 9 | . . . . . 9 Weapon 2 | . . . . 1 1 Tool/Special . | . . . . . . Average Slot Usage (%) 93 | . 91 75 99 94 . Engine 2 | . 14 2 . . . Core 7 | . . . 10 9 . Treads 21 | . 28 22 22 16 . Leg 1 | . . . . 5 . Storage 11 | . 14 11 11 11 . Processor 19 | . 12 14 22 20 . Protection 7 | . . 3 10 9 . Energy Gun 12 | . . 9 18 9 . Ballistic Gun 8 | . 21 12 3 9 . Peak Build Rating 40 | 5 7 14 17 40 . Average Rating 14 | 3 6 9 16 20 . On Entrance 10 | . 5 7 14 15 22 Avg Prop Armor Cover (%) 12 | . . . . 12 . Naked Turns . | . . . . . . Heaviest Build 45 | 9 10 28 36 45 . Greatest Support 60 | 40 40 40 40 60 . Greatest Overweight (x) . | . . . . . . Average Overweight (x) . | . . . . . . Largest Inventory Capacity 15 | 8 8 15 15 15 . Average Capacity 13 | 7 8 12 15 15 . Most Carried 15 | 5 6 13 15 15 . Average Carried 10 | 1 4 9 11 13 . Final Capacity 15 | 8 8 15 15 15 15 Final Carried 14 | 1 6 12 14 13 13 Class Distribution -------------------- 85% | Mutant 14% | Scavenger-Mutant Dominant Class ---------------- Mutant | -10/Materials Mutant | -9/Materials Mutant | -9/Mines Mutant | -9/Exiles Mutant | -8/Mines Resources | -11 -10 -9 -9 -9 -8 ----------- Run | Yrd Mat Mat Min Exi Min Matter Collected 477 | 191 54 109 123 . . Remotely . | . . . . . . Salvage Created 921 | . 54 205 641 21 . Parts 55 | . 5 15 33 2 . Haulers Intercepted . | . . . . . . Recyclers Shooed . | . . . . . . Parts Field Recycled . | . . . . . . Retrieved Matter . | . . . . . . Parts Self-Destructed . | . . . . . . Prevented . | . . . . . . Parts Restored . | . . . . . . Kills | -11 -10 -9 -9 -9 -8 ------- Run | Yrd Mat Mat Min Exi Min Combat Hostiles Destroyed 25 | . 3 5 17 . . Guns 25 | . 3 5 17 . . Classes Destroyed 5 | . 1 2 2 . . Recycler 2 | . . 1 1 . . Swarmer 11 | . 3 4 4 . . Grunt 12 | . . . 12 . . Brawler 1 | . . . 1 . . Sentry 1 | . . 1 . . . Best Kill Streak 4 | . 3 4 4 1 . Combat Bots Only 4 | . 3 4 4 . . Max Kills in Single Turn 2 | . 1 1 2 1 . Gunslinging 1 | . . . 1 . . Exploded . | . . . . . . Melee . | . . . . . . Uniques/NPCs Destroyed 1 | . . . . 1 . EX-DEC (-9/Exiles) Combat | -11 -10 -9 -9 -9 -8 -------- Run | Yrd Mat Mat Min Exi Min Hostile Shots Fired 159 | . 31 21 92 15 . Missed 32 | . 8 3 20 1 . Hits 127 | . 23 18 72 14 . Projectile 127 | . 23 18 72 14 . Critical Strikes 2 | . . . . 2 . Damage Taken 1697 | . 182 261 828 426 . Core 324 | . 28 119 125 52 . Absorbed by Shields . | . . . . . . Redirected to Shielding 207 | . . 20 187 . . Core Remaining (%) 94 | 100 88 . . . . Volleys Fired 78 | . 14 14 42 8 . Largest 2 | . 2 2 2 1 . Hottest 121 | . 40 121 121 120 . Shots Fired 141 | . 23 28 82 8 . Gun 133 | . 23 28 82 . . Cannon 8 | . . . . 8 . Launcher . | . . . . . . Special . | . . . . . . Kinetic 54 | . 23 24 7 . . Thermal 87 | . . 4 75 8 . Explosive . | . . . . . . Electromagnetic . | . . . . . . Robot Hit Streak 17 | . 5 8 17 15 . Robot Miss Streak 10 | . 2 5 10 . . Penetration Max . | . . . . . . Secondary Targets 6 | . . . 6 . . Max Gunslinging Chain 1 | . . . 1 . . Shots Hit Robots 94 | . 14 8 64 8 . Core Hits 59 | . 4 13 38 4 . Critical Kills . | . . . . . . Critical Parts Destroyed 1 | . 1 . . . . Critical Strikes 9 | . 1 1 7 . . Burn 8 | . . 1 7 . . Destroy 1 | . 1 . . . . Melee Attacks . | . . . . . . Impact . | . . . . . . Slashing . | . . . . . . Piercing . | . . . . . . Sneak Attacks . | . . . . . . Combat Hostiles . | . . . . . . Follow-up Attacks . | . . . . . . Damage Inflicted 1452 | . 117 124 935 276 . Guns 1158 | . 117 118 923 . . Cannons 276 | . . . . 276 . Explosions . | . . . . . . Melee . | . . . . . . Ramming 18 | . . 6 12 . . Kinetic 215 | . 117 56 42 . . Thermal 1219 | . . 62 881 276 . Explosive . | . . . . . . Electromagnetic . | . . . . . . Impact . | . . . . . . Slashing . | . . . . . . Piercing . | . . . . . . Highest Corruption 2 | . . . . 2 . Average Corruption 1 | . . . . 1 . Corruption Purged . | . . . . . . Corruption Blocked . | . . . . . . Effects 1 | . . . . 1 . Matter Fused 1 | . . . . 1 . Overload Shots . | . . . . . . Overflow Damage . | . . . . . . Projectiles . | . . . . . . Explosions . | . . . . . . Melee . | . . . . . . Knockbacks . | . . . . . . Impact . | . . . . . . Kinetic . | . . . . . . Secondary . | . . . . . . Self-Inflicted Damage 81 | . . 81 . . . Shots 1 | . . 1 . . . Rammed 2 | . . 2 . . . Targets Rammed 3 | . . 2 1 . . Kicked . | . . . . . . Crushed 1 | . . . 1 . . Highest Temperature 569 | . . 46 554 569 . Average Temperature 208 | . . 24 203 297 . Received Heat Transfer 444 | . . 18 426 . . Effects 24 | . . . 20 4 . Shutdowns 3 | . . . 3 . . Energy Bleed 5 | . . . 4 1 . Interference 6 | . . . 6 . . Matter Decay 3 | . . . 1 2 . Short Circuit 1 | . . . . 1 . Damage (minor) 3 | . . . 3 . . Damage (major) 3 | . . . 3 . . Siege Activations . | . . . . . . Martial Activations . | . . . . . . Shielding Activations . | . . . . . . Robots Disrupted . | . . . . . . Combat Hostiles . | . . . . . . Robots Corrupted . | . . . . . . Combat Hostiles . | . . . . . . Parts Fried . | . . . . . . Impact Corruptions . | . . . . . . Robots Melted . | . . . . . . Combat Hostiles . | . . . . . . Parts Melted 14 | . . . 6 8 . Heat Transferred 3327 | . . 171 2516 640 . Parts Sabotaged . | . . . . . . Parts Stolen . | . . . . . . Parts Stripped . | . . . . . . Power Chain Reactions . | . . . . . . Alert | -11 -10 -9 -9 -9 -8 ------- Run | Yrd Mat Mat Min Exi Min Maximum Alert Level . | . . . . . . Low Security (%) 100 | 100 100 100 100 . . Level 1 . | . . . . . . Level 2 . | . . . . . . Level 3 . | . . . . . . Level 4 . | . . . . . . Level 5 . | . . . . . . High Security . | . . . . . . Max Security . | . . . . . . Peak Influence 106 | . 60 106 84 . . Initial 19 | . . . 19 . . Average 31 | . 14 60 31 . . Influence Increases 661 | . 70 171 420 . . Destroy 0b10 Robot/C 500 | . 60 100 340 . . Destroy 0b10 Robot/NC 10 | . . 5 5 . . Destroy Leader 90 | . 10 20 60 . . Disable Machine 45 | . . 30 15 . . Destroy Structure 16 | . . 16 . . . Influence Decreases 661 | . 70 120 427 44 . Entered New Map 76 | . . . 32 44 . Time Decay 535 | . 70 110 355 . . Lost Part 50 | . . 10 40 . . Squads Dispatched 1 | . . 1 . . . Investigation 1 | . . 1 . . . Extermination . | . . . . . . Reinforcement . | . . . . . . Assault . | . . . . . . Garrison . | . . . . . . Intercept . | . . . . . . Searches Triggered . | . . . . . . Construction Impeded . | . . . . . . Haulers Reinforced . | . . . . . . Active Scanning Responses . | . . . . . . Cargo Convoy Interrupts . | . . . . . . Stealth | -11 -10 -9 -9 -9 -8 --------- Run | Yrd Mat Mat Min Exi Min Distress Signals . | . . . . . . Communications Jammed . | . . . . . . Distress Signals . | . . . . . . Times Spotted 37 | . 5 6 18 7 1 Peak Tracking Total 12 | . 3 4 4 12 1 Tactical Retreats 1 | . . . . 1 . Traps | -11 -10 -9 -9 -9 -8 ------- Run | Yrd Mat Mat Min Exi Min Traps Triggered 1 | . . 1 . . . Indirectly . | . . . . . . Trap Hack Attempts . | . . . . . . Triggered . | . . . . . . Disarmed . | . . . . . . Reprogrammed . | . . . . . . Reused . | . . . . . . Traps Extracted . | . . . . . . Installed . | . . . . . . Triggered . | . . . . . . Machines | -11 -10 -9 -9 -9 -8 ---------- Run | Yrd Mat Mat Min Exi Min Machines Disabled 3 | . . 2 1 . . Max in Single Turn 2 | . . 2 1 . . Machines Repaired . | . . . . . . Machines Dismantled . | . . . . . . Machines Sabotaged . | . . . . . . Overloaded Fab Kills . | . . . . . . Hacking | -11 -10 -9 -9 -9 -8 --------- Run | Yrd Mat Mat Min Exi Min Machines Accessed 2 | . 1 . . 1 . Terminals . | . . . . . . Fabricators . | . . . . . . Repair Stations . | . . . . . . Recycling Units 1 | . 1 . . . . Scanalyzers . | . . . . . . Garrison Access . | . . . . . . Total Hacks 3 | . 2 . . 1 . Successful 2 | . 1 . . 1 . Failed 1 | . 1 . . . . Catastrophic 1 | . 1 . . . . Database Lockouts . | . . . . . . Manual 1 | . . . . 1 . Terminals . | . . . . . . Fabricators . | . . . . . . Repair Stations . | . . . . . . Recycling Units 2 | . 2 . . . . Scanalyzers . | . . . . . . Garrison Access . | . . . . . . Terminal Hacks 1 | . . . . 1 . Proto ID Catalog 1 | . . . . 1 . Fabricator Hacks . | . . . . . . Repair Station Hacks . | . . . . . . Recycling Unit Hacks 1 | . 1 . . . . Retrieve Components 1 | . 1 . . . . Scanalyzer . | . . . . . . Garrison Access Hacks . | . . . . . . Unauthorized Hacks . | . . . . . . Terminals . | . . . . . . Fabricators . | . . . . . . Repair Stations . | . . . . . . Recycling Units . | . . . . . . Scanalyzers . | . . . . . . Garrison Access . | . . . . . . Data Cores Recovered . | . . . . . . Used . | . . . . . . Hacking Detections 1 | . 1 . . . . Full Trace Events 1 | . 1 . . . . Feedback Events . | . . . . . . Feedback Blocked . | . . . . . . Robot Schematics Acquired . | . . . . . . Robots Built . | . . . . . . Authchips . | . . . . . . Time . | . . . . . . Total Robot Build Rating . | . . . . . . Part Schematics Acquired . | . . . . . . Parts Built . | . . . . . . Authchips . | . . . . . . Time . | . . . . . . Total Part Build Rating . | . . . . . . Part Studies Acquired . | . . . . . . Parts Repaired . | . . . . . . Time . | . . . . . . Parts Recycled . | . . . . . . Recycled Matter . | . . . . . . Retrieved Matter . | . . . . . . Retrieved Components . | . . . . . . Parts Scanalyzed . | . . . . . . Part Schematics Acquired . | . . . . . . Parts Damaged . | . . . . . . Bothacking | -11 -10 -9 -9 -9 -8 ------------ Run | Yrd Mat Mat Min Exi Min Used RIF Installer . | . . . . . . Robots Hacked . | . . . . . . Non-combat . | . . . . . . Combat . | . . . . . . Robot Hacks Applied . | . . . . . . Relay Couplers Released . | . . . . . . Fabnet Peak Effective % . | . . . . . . Robots Rewired . | . . . . . . Allies Hacked . | . . . . . . Hacks Repelled . | . . . . . . Allies | -11 -10 -9 -9 -9 -8 -------- Run | Yrd Mat Mat Min Exi Min Total Allies . | . . . . . . Largest Group . | . . . . . . Highest-Rated Group . | . . . . . . Highest-Rated Ally . | . . . . . . Total Orders . | . . . . . . Ally Attacks . | . . . . . . Total Damage . | . . . . . . Kills . | . . . . . . Allies Corrupted . | . . . . . . Allies Melted . | . . . . . . Intel | -11 -10 -9 -9 -9 -8 ------- Run | Yrd Mat Mat Min Exi Min Active Infowar (turns) . | . . . . . . Robot Analysis Total . | . . . . . . Derelict Logs Recovered . | . . . . . . Drone Launches . | . . . . . . Drone Recoveries . | . . . . . . Exploration | -11 -10 -9 -9 -9 -8 ------------- Run | Yrd Mat Mat Min Exi Min Turns Passed 2039 | 66 307 256 1045 365 . Spaces Moved 1132 | 47 148 117 562 258 . Core 17 | 17 . . . . . Treads 1021 | 30 148 117 562 164 . Legs 94 | . . . . 94 . Wheels . | . . . . . . Hover . | . . . . . . Flight . | . . . . . . Fastest Speed 45 | 50 160 160 160 45 . Average Speed 151 | 120 160 160 160 130 . Slowest Speed 160 | 160 160 160 160 160 . Overloaded Moves 22 | . . . . 22 . Propulsion Burnouts . | . . . . . . Robots Hopped . | . . . . . . Potential Cave-ins . | . . . . . . Cave-ins Triggered . | . . . . . . Exploration Rate (%) 33 | 3 24 12 94 63 4 Regions Visited 5 Branch Regions 3 Pre-discovered Areas . | . . . . . . Known Exits Taken . | . . . . . . Unknown Exits Taken 5 | 1 1 1 1 1 . Scrap Searched 2 | . . . 2 . . Spaces Dug . | . . . . . . Terrain Destroyed 17 | . . 17 . . . Melee . | . . . . . . Projectile . | . . . . . . AOE 17 | . . 17 . . . Terrain Rammed . | . . . . . . Walls Destroyed . | . . . . . . Machines Disabled . | . . . . . . Actions | -11 -10 -9 -9 -9 -8 --------- Run | Yrd Mat Mat Min Exi Min Total 1326 | 57 200 164 628 277 . Wait 40 | . 30 7 3 . . Move 1127 | 46 147 116 561 257 . Hop . | . . . . . . Pick Up 40 | 6 7 14 10 3 . Fast Attach . | . . . . . . Attach 17 | 5 2 3 7 . . Detach . | . . . . . . Swap 7 | . . 2 1 4 . Drop 14 | . . 6 3 5 . Fire 78 | . 14 14 42 8 . Melee . | . . . . . . Ram . | . . . . . . Kick . | . . . . . . Crush 3 | . . 2 1 . . Escape Stasis . | . . . . . . Rewire . | . . . . . . Trap . | . . . . . . Miscellaneous . | . . . . . . Route ------- -11/Scrapyard -10/Materials -9/Materials -9/Mines (discovered 3 exits: [*Mat x2] / *Exi) -9/Exiles -8/Mines History --------- Turn | Location | Event 2 | -11/Scrapyard | Met Revision 17 10 | -11/Scrapyard | Discovered new exit (range 15) 67 | -11/Scrapyard | Entered Materials 311 | -10/Materials | Build established: Mutant 368 | -10/Materials | Discovered new exit (range 4) 374 | -10/Materials | Entered another Materials area 374 | -9/Materials | Evolved 2 slots: Utility x2 605 | -9/Materials | Discovered new exit (range 13) 630 | -9/Materials | Entered Mines 777 | -9/Mines | Discovered new exit (range 9) 1081 | -9/Mines | Joined a pair of Derelicts in attacking an 0b10 outpost 1157 | -9/Mines | Discovered new exit (range 10) 1282 | -9/Mines | Core integrity fell below 50% 1492 | -9/Mines | Found DCF Scrap (14 items) 1499 | -9/Mines | Found a damaged Exp. Sensor Array with a note attached 1669 | -9/Mines | Deemed a non-threat by the Exiles lab entrance 1669 | -9/Mines | Discovered new exit (range 5) 1675 | -9/Mines | Entered Exiles 1714 | -9/Exiles | Met 8R-AWN 1743 | -9/Exiles | Met EX-HEX 1788 | -9/Exiles | Met EX-BIN 1809 | -9/Exiles | Aligned with FarCom system 1810 | -9/Exiles | Given EX-Vault access code 1847 | -9/Exiles | Opened EX-Vault 1869 | -9/Exiles | Found Gui. Plasma Cannon 1920 | -9/Exiles | Found Potential Leg 1923 | -9/Exiles | Found Potential Leg 1956 | -9/Exiles | Warned to stay clear of 0b10 Research branches 1981 | -9/Exiles | Met EX-DEC 1998 | -9/Exiles | Attacked by the Exiles 2001 | -9/Exiles | Destroyed EX-DEC 2034 | -9/Exiles | Lost 4 parts (1p2u1w) 2036 | -9/Exiles | Discovered new exit (range 10) 2040 | -9/Exiles | Stole two prototypes: Potential Leg, Gui. Plasma Cannon 2040 | -9/Exiles | Entered Mines 2040 | -8/Mines | Self-destructed Last Messages --------------- 02001_ EX-DEC: "This would never have happened if OCT was still around!" 02001_ EX-DEC destroyed. 02003_ Nuclear Core destroyed. 02003_ Knocked back. 02005_ Overheating: Matter decay (-53). 02005_ System corrupted: Matter fused (-8). 02007_ Knocked back. 02009_ EX-BIN: "I just want to science!" 02010_ DAS Turret heat short circuits Prototype Ballistic Cannon. 02013_ Overheating: Energy bleed (-3). 02014_ Overheating: Matter decay (-45). 02017_ Potential Leg broken. 02017_ Overheating: Short circuit. 02030_ Dropped Broken Potential Leg. 02036_ EXIT=FOUND A strange signal echoes through the mines. LOCATION=UNKNOWN GOAL=ESCAPE Map ----- +----------------------------------------------------+ | ??????????????????????????????????????????? | | ??????????????????????????????????????????? | | ??????????????????????????????????????????? | | ??????????????????????????????????????????? | | ??????????????????????????????????????????? | | ??????????????????????????????????????????? | | ??????????????????????????????????????????? | | ??????????????????????????????????????????? | | ??????????????????????????????????????????? | | ??????????????????????????????????????????? | | ??????????????????????????????????????????? | | ??????????????????????????????????????????? | | ??????????????????????????????????????????? | | ????????????????????????# ??????????????? | | ???????????????????????? ????????????? | | ??????????????????????? ?????????????? | | ??????????????????????? ??????????????? | | ?????????????????????? i #??????????????? | | ?????????????????????? #??????????????? | | ????????????????????? #??????????????? | | ????????????????????# #??????????????? | | ???????????????????# ???????????????? | | ?????????????????## ?????????????????? | | ????????????????## #??????????????????? | | ????????????# ## #???????????????????? | | ????????????# $ @ #???????????????????? | | ????????????# #???????????????????? | | ????????????###########???????????????????? | | ??????????????????????????????????????????? | | ??????????????????????????????????????????? | | ??????????????????????????????????????????? | | ??????????????????????????????????????????? | | | | | | | | | | | | | | | | | | | | | | | | | | | | | | | | | | | | | +----------------------------------------------------+ Best States ------------- Heat Dissipation 28 Energy Generation 14 Energy Capacity 240 Matter Stores 300 Matter Capacity 300 Sight Range 16 Terrain Scan Density 10 Armor Coverage 150 Propulsion Shielding 66 Evasion (%) 66 Targeting Accuracy 10 Recoil Reduction 2 Item Schematics ----------------- None Robot Schematics ------------------ None Fabricated ------------ Nothing Repaired ---------- Nothing Studied --------- None Alien Tech Used ----------------- None Achievements -------------- None Challenges ------------ None Game ------ Seed GravjetNodeModule Manual? 0 Play Time 00:14:06 Cumulative 15.7 hours Start 2026.07.13 @ 08:56:56 End 2026.07.13 @ 09:13:53 Sessions 2 Manual Loads 0 Difficulty Rogue Special Mode None Game No. 24 Rogue 24 Adventurer 0 Explorer 0 Win Type - Total 0 Types 0/0/0/0/0/0/0/0/0/0 Lore% 5 Gallery% 14 Achievement% 14 Wizard Run 0 Options --------- Layout 1 ASCII 0 Keyboard 0 Movement Mouse Keybinds 0 Fullscreen 1 Font 24/Smallcaps Map View 50x35 Zoom Use 0% Tactical HUD 1 Map Filters NONE Filters NONE Steam 1 RUN: 8fa29ac6-70e0-48fc-a399-f8a466900aac